Cogmind - Beta 16 @@@ ROGUE MODE // 2026.01.01 @ 01:23:20 Player: JuustuToug Result: Destroyed by P-80 Master with Gamma Rifle Performance ------------- Evolutions (9) 4500 Regions Visited (23) 4600 Robots Destroyed (303) 1515 Value Destroyed (12800) 12800 Prototype IDs (56) 1120 Alien Tech Used (1) 200 Bonus (7081) 7081 TOTAL SCORE: 31816 Bonus ------- High Alert Combat Kills 470 Follower Combat Kills 2223 Network Hubs Disabled 200 Registered with UFD 300 Met Optimus in HQ 500 Met Data Miner 300 Met Zhirov 300 Built Enhanced Grunts 300 A7 Reached Mainframe 300 Met R17 at Cetus 500 Read Decrypted Archives 300 Met R17 at Research 2000 Friendly Fire -612 Cogmind --------- Core Integrity 0/1600 Matter 265/300 Energy 78/100 System Corruption 49% Temperature Cool (0) Movement Core (50) Location -1/Access Parts ------- > --- POWER (3) -------- (None) > --- PROPULSION (6) --- Centrium Leg > --- UTILITY (12) ----- Advanced Signal Interpreter Advanced Target Analyzer Advanced Target Analyzer > --- WEAPON (5) ------- (None) > --- INVENTORY (5) ---- Advanced Sensor Array SHELL Armor Advanced Remote Datajack Peak State ------------ > --- POWER ------------ Reinforced Fission Core Reinforced Antimatter Reactor Light Quantum Reactor > --- PROPULSION ------- Improved Treads Medium Treads Centrium Heavy Treads Centrium Heavy Treads > --- UTILITY ---------- Experimental Cooling System High-capacity Storage Unit Experimental Optical Array Advanced Signal Interpreter Experimental Targeting Computer Precision Matter Filter Experimental Phase Shifter SHELL Armor > --- WEAPON ----------- Railgun Railgun Advanced KE Penetrator Omega Cannon > --- INVENTORY -------- Particle Reactor Light Particle Reactor Enhanced Biometal Leg Matter Compressor Advanced Sensor Array Terrain Scanner Long-range Tractor Beam Gauss Rifle Coil Gun Coil Gun Coil Gun Coil Gun Railgun Railgun Heavy Rocket Launcher Enhanced Force Lance [Rating: 196] Favorites ----------- Power Cooled Ion Engine Engine Cooled Ion Engine Power Core Reinforced Fission Core Reactor Light Quantum Reactor Propulsion Light Treads Treads Light Treads Leg Flexi-carbon Leg Wheel Wheel Hover Unit Improved Antigrav System Flight Unit Xenon Bombardment Thruster Utility High-capacity Storage Unit Device Transmission Jammer Storage High-capacity Storage Unit Processor Advanced Signal Interpreter Protection Light Regenerative Plating Weapon KE Penetrator Energy Gun Enhanced Quantum Rifle Energy Cannon Compact Ion Cannon Ballistic Gun KE Penetrator Ballistic Cannon Omega Cannon Launcher Heavy Rocket Launcher Slashing Weapon Power Sword Piercing Weapon Enhanced Force Lance Build | -11 -10 -10 -10 -9 -8 -8 -8 -8 -6 -6 -6 -6 -5 -5 -4 -4 -4 -4 -4 -3 -3 -2 -1 ------- Run | Yrd Mat Min Exi Min Mat Sto Rec Scr Fac Low Low Dat Pro Fac Fac Ext Cet Arc Hub Res Tes Res Acc Slots Evolved 18 | . . . . . 4 . . . 4 . . . . 2 2 . . . . 2 . 2 2 Power 2 | . . . . . . . . . 1 . . . . . . . . . . . . 1 . Propulsion 4 | . . . . . 2 . . . . . . . . 1 . . . . . 1 . . . Utility 10 | . . . . . . . . . 3 . . . . 1 2 . . . . 1 . 1 2 Weapon 2 | . . . . . 2 . . . . . . . . . . . . . . . . . . Parts Attached 254 | 7 5 2 . 2 22 9 4 3 20 3 7 . 3 32 20 21 8 . 5 5 17 22 37 Power 38 | 1 . . . . 4 1 . 1 3 . . . . 5 5 5 1 . . 1 2 4 5 Engine 12 | 1 . . . . 4 1 . 1 1 . . . . 3 1 . . . . . . . . Core 10 | . . . . . . . . . 2 . . . . 2 3 3 . . . . . . . Reactor 16 | . . . . . . . . . . . . . . . 1 2 1 . . 1 2 4 5 Propulsion 67 | 2 . . . . 6 2 3 2 4 1 . . 1 5 7 6 3 . 1 . 2 11 11 Treads 44 | 2 . . . . 6 2 3 2 4 1 . . . 3 6 5 3 . 1 . 1 4 1 Leg 11 | . . . . . . . . . . . . . 1 1 . 1 . . . . 1 3 4 Wheel 5 | . . . . . . . . . . . . . . 1 1 . . . . . . 3 . Hover 6 | . . . . . . . . . . . . . . . . . . . . . . 1 5 Flight 1 | . . . . . . . . . . . . . . . . . . . . . . . 1 Utility 67 | 2 1 2 . 2 3 . 1 . 7 . 4 . 2 11 5 4 1 . 3 1 7 3 8 Device 42 | 1 . 2 . 2 2 . 1 . 4 . 2 . 1 8 2 4 . . 2 . 3 2 6 Storage 4 | 1 1 . . . 1 . . . . . . . 1 . . . . . . . . . . Processor 12 | . . . . . . . . . 1 . . . . 2 3 . . . 1 . 3 1 1 Hackware . | . . . . . . . . . . . . . . . . . . . . . . . . Protection 9 | . . . . . . . . . 2 . 2 . . 1 . . 1 . . 1 1 . 1 Artifact . | . . . . . . . . . . . . . . . . . . . . . . . . Weapon 82 | 2 4 . . . 9 6 . . 6 2 3 . . 11 3 6 3 . 1 3 6 4 13 Energy Gun 8 | . 1 . . . . 2 . . . . . . . . . . 1 . . . . . 4 Energy Cannon 9 | . 1 . . . 2 . . . 3 . 1 . . . . . . . . . . 1 1 Ballistic Gun 55 | 2 2 . . . 7 3 . . . 1 2 . . 11 3 6 2 . . 3 3 3 7 Ballistic Cannon 3 | . . . . . . . . . . . . . . . . . . . . . 2 . 1 Launcher 3 | . . . . . . . . . 2 1 . . . . . . . . . . . . . Special Weapon . | . . . . . . . . . . . . . . . . . . . . . . . . Impact Weapon . | . . . . . . . . . . . . . . . . . . . . . . . . Slashing Weapon 3 | . . . . . . 1 . . 1 . . . . . . . . . 1 . . . . Piercing Weapon 1 | . . . . . . . . . . . . . . . . . . . . . 1 . . Special Melee Weapon . | . . . . . . . . . . . . . . . . . . . . . . . . Unidentified Prototypes 30 | . . 1 . 1 2 5 . . 2 . 2 . . . 1 . 4 . 2 1 9 . . Corrupted Parts 2 | . . . . . . . . . . . . . . . . . . . 1 . . . 1 System Corruption 11 | . . . . . . . . . . . . . . . . . . . 6 . . . 5 Parts Lost 85 | . . 1 . . . . . . . . . . 3 10 3 5 2 . . . 2 12 47 Power 11 | . . . . . . . . . . . . . . 1 . 1 . . . . . 1 8 Propulsion 29 | . . . . . . . . . . . . . 1 5 1 2 1 . . . . 4 15 Utility 19 | . . 1 . . . . . . . . . . 2 1 . 1 1 . . . 2 3 8 Weapon 26 | . . . . . . . . . . . . . . 3 2 1 . . . . . 4 16 Highest Loss Streak 23 | . . 1 . . . . . . . . . . 3 2 2 2 2 . . . 1 5 23 To Critical Strikes 1 | . . . . . . . . . . . . . . . . . . . . . . . 1 Average Backups 18 | 1 7 14 15 13 16 20 20 19 18 19 18 19 18 18 18 18 19 19 19 19 19 17 15 Power 1 | . 1 1 1 1 1 1 1 . . 1 1 2 2 1 1 . 1 1 1 1 1 3 2 Propulsion 1 | . . 1 1 . 1 3 3 3 3 2 2 2 1 . . . . 1 1 1 1 . . Utility 7 | . 2 3 5 4 6 8 8 8 5 6 7 8 7 7 9 8 7 7 7 8 6 5 7 Weapon 8 | . 3 9 8 6 7 8 8 8 9 9 7 7 7 9 7 8 9 10 9 8 9 7 4 Tool/Special . | . . . . . . . . . . . . . . . . . . . . . . . . Unused Backups 53 | . . 1 . 1 9 . 2 1 8 . 1 . . 11 3 5 . . 1 1 1 1 7 Power 3 | . . . . . 1 . . . 1 . . . . . . . . . . . . 1 . Propulsion 3 | . . . . . . . 1 1 . . . . . . . . . . . . 1 . . Utility 18 | . . 1 . . 3 . . . . . 1 . . 5 3 . . . . 1 . . 4 Weapon 27 | . . . . 1 5 . 1 . 7 . . . . 6 . 5 . . 1 . . . 1 Tool/Special 2 | . . . . . . . . . . . . . . . . . . . . . . . 2 Average Slot Usage (%) 94 | . 100 96 85 95 99 100 100 100 98 100 99 74 99 97 99 97 87 90 90 85 85 84 81 Engine 6 | . 14 14 14 14 8 9 9 9 8 13 12 12 12 4 4 . . . . . . . . Core 2 | . . . . . . . . . 2 . . . . 5 5 5 5 5 5 4 3 2 . Reactor 2 | . . . . . . . . . . . . . . . . 3 5 5 5 4 4 8 9 Treads 22 | . 28 28 28 28 35 36 36 36 26 26 25 25 21 19 21 22 15 15 15 12 14 13 5 Leg 1 | . . . . . . . . . . . . . 3 5 1 . . . . . . 1 5 Device 12 | . 14 11 . 10 9 9 9 9 12 13 12 12 11 15 15 14 12 15 14 12 11 8 13 Storage 6 | . 14 14 14 13 9 9 9 9 6 6 6 6 6 5 5 5 5 5 5 4 4 4 2 Processor 7 | . . . . . . . . . 5 6 6 6 6 5 14 15 15 15 15 18 18 14 14 Protection 3 | . . . . . . . . . 5 6 6 6 6 4 5 5 5 5 5 4 4 4 3 Energy Cannon 6 | . 2 14 14 14 9 8 9 9 12 13 12 2 12 1 . . . . . . . . . Ballistic Gun 19 | . 21 14 14 14 26 26 27 27 12 12 16 3 17 23 21 24 23 25 24 20 20 18 11 Peak Build Rating 196 | 7 11 19 11 21 27 32 32 36 66 65 68 68 68 87 112 117 137 137 137 159 172 196 195 Average Rating 82 | 5 8 11 11 12 23 29 31 33 56 63 65 49 64 79 105 109 124 137 134 154 159 164 162 On Entrance 71 | . 7 11 11 11 13 27 32 31 36 65 61 68 68 62 86 107 110 137 137 136 158 171 169 Avg Prop Armor Cover (%) 5 | . . . . . . . . . . . . . 2 3 13 2 . . . . 7 5 9 Naked Turns . | . . . . . . . . . . . . . . . . . . . . . . . . Heaviest Build 182 | 14 33 33 32 33 61 63 64 64 79 82 101 90 96 100 98 118 116 112 112 117 140 171 182 Greatest Support 240 | 40 40 40 40 40 80 80 80 82 90 88 80 80 80 86 136 153 183 183 183 240 240 216 112 Greatest Overweight (x) 16 | . . . . . . . . . . . 1 1 1 6 6 1 . . . . . 16 7 Average Overweight (x) . | . . . . . . . . . . . . . 1 1 . . . . . . . 2 1 Largest Inventory Capacity 20 | 8 15 15 15 15 20 20 20 20 20 20 20 20 20 20 20 20 20 20 20 20 20 20 20 Average Capacity 19 | 6 14 15 15 14 18 20 20 20 20 20 20 20 20 20 20 20 20 20 20 20 20 20 18 Most Carried 20 | 3 15 15 15 15 20 20 20 20 20 20 20 20 20 20 20 20 20 20 20 20 20 20 20 Average Carried 18 | 1 7 14 15 13 17 20 20 20 19 19 19 20 19 19 19 19 19 20 19 19 19 18 16 Final Capacity 20 | 8 15 15 15 15 20 20 20 20 20 20 20 20 20 20 20 20 20 20 20 20 20 20 5 Final Carried 20 | 3 15 15 15 15 20 20 20 20 20 20 20 20 20 20 20 20 20 20 20 20 20 20 5 Class Distribution -------------------- 43% | Scavenger-Skirmisher 18% | Scavenger-Gunner 9% | Mutant 8% | Scavenger-Tank 6% | Scavenger-Assassin 6% | Gunner 3% | Skirmisher Dominant Class ---------------- Mutant | -10/Materials Mutant | -10/Mines Mutant | -10/Exiles Mutant | -9/Mines Scavenger-Gunner | -8/Materials Scavenger-Gunner | -8/Storage Scavenger-Gunner | -8/Recycling Gunner | -8/Scraptown Scavenger-Tank | -6/Factory Scavenger-Skirmisher | -6/Lower Caves Scavenger-Skirmisher | -6/Lower Caves Scavenger-Mutant | -6/Data Miner Scavenger-Tank | -5/Proximity Caves Scavenger-Skirmisher | -5/Factory Scavenger-Assassin | -4/Factory Scavenger-Skirmisher | -4/Extension Commander-Skirmisher | -4/Cetus Commander-Tank | -4/Archives Commander-Skirmisher | -4/Hub_04(d) Scavenger-Skirmisher | -3/Research Scavenger-Skirmisher | -3/Testing Scavenger-Skirmisher | -2/Research Scavenger-Skirmisher | -1/Access Resources | -11 -10 -10 -10 -9 -8 -8 -8 -8 -6 -6 -6 -6 -5 -5 -4 -4 -4 -4 -4 -3 -3 -2 -1 ----------- Run | Yrd Mat Min Exi Min Mat Sto Rec Scr Fac Low Low Dat Pro Fac Fac Ext Cet Arc Hub Res Tes Res Acc Matter Collected 13737 | 192 161 339 4 20 639 314 253 40 742 237 493 . 418 1910 1323 1221 248 . 252 444 826 2057 1604 Remotely 3824 | . . . . . . . . . . . . . . 517 490 640 . . . 102 442 866 767 Salvage Created 15704 | 10 161 297 . . 910 574 537 . 1047 257 415 . 489 2299 1186 1116 117 . 955 370 951 2226 1787 Parts 780 | 2 7 25 . . 59 29 31 . 63 14 17 . 21 93 57 52 4 . 36 14 44 112 100 Haulers Intercepted 11 | . 1 . . . 5 2 . . 1 . 1 . . . . . . . . . . 1 . Recyclers Shooed 13 | . . . . . . 2 . . 2 . . . . 6 1 1 . . . . . 1 . Parts Field Recycled . | . . . . . . . . . . . . . . . . . . . . . . . . Retrieved Matter . | . . . . . . . . . . . . . . . . . . . . . . . . Parts Self-Destructed 36 | . . . . . . . . . . 3 13 . 20 . . . . . . . . . . Prevented . | . . . . . . . . . . . . . . . . . . . . . . . . Parts Restored . | . . . . . . . . . . . . . . . . . . . . . . . . Kills | -11 -10 -10 -10 -9 -8 -8 -8 -8 -6 -6 -6 -6 -5 -5 -4 -4 -4 -4 -4 -3 -3 -2 -1 ------- Run | Yrd Mat Min Exi Min Mat Sto Rec Scr Fac Low Low Dat Pro Fac Fac Ext Cet Arc Hub Res Tes Res Acc Combat Hostiles Destroyed 217 | . 1 10 . . 14 7 3 . 18 8 10 . 14 29 13 18 2 . 4 9 9 23 25 Guns 138 | . 1 3 . . 6 4 1 . 4 . 3 . 3 27 13 6 2 . 4 4 9 23 25 Cannons 33 | . . 7 . . 8 3 2 . 9 1 2 . 1 . . . . . . . . . . AOE 42 | . . . . . . . . . 5 7 5 . 8 . . 12 . . . 5 . . . Classes Destroyed 20 | 1 3 3 . . 2 3 . . 2 1 . . . . . 2 . . 1 . 1 . 1 Worker 15 | . . . . . . . . . 4 . . . . 4 1 . . . 2 . . 2 2 Builder 12 | . . 2 . . 2 . . . . . . . . 5 . 2 . . . . . . 1 Tunneler 5 | 1 . 2 . . 1 . . . . . . . . 1 . . . . . . . . . Hauler 11 | . 1 . . . 5 2 . . 1 . 1 . . . . . . . . . . 1 . Recycler 25 | . 1 . . . . 1 5 . 1 . . . . 5 3 2 . . 1 . 2 3 1 Operator 1 | . . . . . . 1 . . . . . . . . . . . . . . . . . Watcher 8 | . . . . . 1 . . . 1 . . . . . 2 . . . . . 1 1 2 Swarmer 64 | . . 6 . . 5 . . . 8 3 3 . . 9 5 9 . . . 5 3 . 8 Grunt 47 | . 1 3 . . 7 2 . . 3 . 5 . 9 4 . 4 . . 1 1 . 4 3 Protector 1 | . . . . . . . . . . . . . . . . . . . 1 . . . . Researcher 1 | . . . . . . . . . . . . . . . . . . . . . 1 . . Sentry 31 | . . . . . 3 3 3 . 3 . . . 1 5 2 3 . . . 1 . 5 2 Demolisher 1 | . . . . . . 1 . . . . . . . . . . . . . . . . . Specialist 2 | . . . . . . . . . . . . . . . . . . . . . . . 2 Hunter 17 | . . . . . . 1 . . . . 2 . 2 1 2 . . . 2 2 2 2 1 Programmer 44 | . . . . . . . . . 4 . . . 2 10 4 . . . . . 4 11 9 Behemoth 3 | . . . . . . . . . . . . . . . . 2 . . . . . 1 . Cetus Guard 2 | . . . . . . . . . . . . . . . . . 2 . . . . . . Enhanced Grunt 3 | . . . . . . . . . . . . . . . . . . . 3 . . . . Decomposer 4 | . . . . . . . . . . 3 1 . . . . . . . . . . . . Assembled 1 | . . 1 . . . . . . . . . . . . . . . . . . . . . Wasp 3 | . . . . . . . . . . 3 . . . . . . . . . . . . . Thug 5 | . . . . . . . . . . 1 . . . . . . . . 4 . . . . Butcher 1 | . . . . . . . . . . . . . . . . 1 . . . . . . . Mutant 1 | . . . . . . . . . . 1 . . . . . . . . . . . . . Best Kill Streak 10 | 1 2 3 . . 4 5 4 . 4 4 6 . 5 5 5 10 1 . 5 5 4 7 7 Combat Bots Only 8 | . 1 3 . . 3 4 1 . 4 4 5 . 5 4 4 8 1 . 2 5 4 6 5 Max Kills in Single Turn 6 | 1 1 1 . . 2 2 1 . 2 4 2 . 3 3 2 6 1 . 4 3 3 2 3 Gunslinging 1 | . . . . . . . . . . . . . . 1 1 1 . . . . 1 1 1 Exploded 4 | . . . . . . . . . 2 4 2 . 3 . . 4 . . . 3 . . . Melee . | . . . . . . . . . . . . . . . . . . . . . . . . Uniques/NPCs Destroyed . | . . . . . . . . . . . . . . . . . . . . . . . . Combat | -11 -10 -10 -10 -9 -8 -8 -8 -8 -6 -6 -6 -6 -5 -5 -4 -4 -4 -4 -4 -3 -3 -2 -1 -------- Run | Yrd Mat Min Exi Min Mat Sto Rec Scr Fac Low Low Dat Pro Fac Fac Ext Cet Arc Hub Res Tes Res Acc Hostile Shots Fired 1911 | . 4 35 . . 65 23 2 . 108 22 47 . 59 154 145 153 16 . 3 53 82 282 658 Missed 551 | . . 12 . . 23 6 1 . 32 6 16 . 13 46 41 50 3 . . 16 27 77 182 Hits 1360 | . 4 23 . . 42 17 1 . 76 16 31 . 46 108 104 103 13 . 3 37 55 205 476 Projectile 1360 | . 4 23 . . 42 17 1 . 76 16 31 . 46 108 104 103 13 . 3 37 55 205 476 AOE 6 | . . . . . . 2 . . . . . . . 2 . . . . . . . . 2 Critical Strikes 46 | . . . . . 3 . . . 1 . 1 . 4 . 3 3 . . 1 2 2 5 21 Part Disruptions 5 | . . . . . . . . . . . . . . . . . . . . . 1 . 4 Damage Taken 28121 | . 45 197 . . 617 326 14 . 1067 241 585 . 815 2174 1626 1918 301 . 223 823 1107 5642 10400 Core 2691 | . 45 43 . . 39 . . . 74 19 52 . 84 136 167 189 . . . 16 88 118 1621 Absorbed by Shields 1639 | . . . . . . . . . . . . . . . . 208 78 . . . 198 195 960 Reduced by Siege Mode 213 | . . . . . . . . . . . . . . . . . . . . . 12 201 . Ignored by Resistances 96 | . . . . . . . . . . . . . 80 16 . . . . . . . . . Regen/Repaired (Parts) 5814 | . . . . . 102 . . . . . . . . 129 172 296 54 . 17 78 138 2356 2472 Core Remaining (%) 83 | 100 . . . 64 . . . 92 . . . . 73 86 . . . . 69 . 92 91 . Volleys Fired 568 | 4 9 35 . . 42 25 9 . 45 10 19 . 20 61 37 35 8 . 12 14 24 81 78 Largest 5 | 2 2 2 . . 4 4 4 . 4 4 4 . 5 5 5 5 5 . 5 5 5 5 5 Hottest 312 | 40 70 91 . . 143 144 144 . 233 233 232 . 252 252 162 164 240 . 171 175 175 205 312 Shots Fired 2176 | 8 18 70 . . 165 97 36 . 169 30 37 . 57 299 170 151 36 . 60 54 108 305 306 Gun 1850 | 8 18 35 . . 123 72 27 . 88 12 12 . 28 288 170 147 36 . 60 51 108 280 287 Cannon 292 | . . 35 . . 42 25 9 . 79 15 15 . 18 11 . . . . . . . 25 18 Launcher 34 | . . . . . . . . . 2 3 10 . 11 . . 4 . . . 3 . . 1 Special . | . . . . . . . . . . . . . . . . . . . . . . . . Kinetic 1799 | 8 14 35 . . 123 72 27 . 88 12 12 . 28 288 170 147 35 . 60 51 108 292 229 Thermal 338 | . 4 35 . . 42 25 9 . 79 15 15 . 18 11 . . 1 . . . . 13 71 Explosive 34 | . . . . . . . . . 2 3 10 . 11 . . 4 . . . 3 . . 1 Electromagnetic 5 | . . . . . . . . . . . . . . . . . . . . . . . 5 Robot Hit Streak 40 | 4 13 12 . . 11 12 10 . 16 6 4 . 11 13 14 30 5 . 8 18 11 40 15 Robot Miss Streak 7 | 1 2 5 . . 7 3 2 . 3 4 2 . 2 3 4 5 3 . 2 3 4 4 3 Penetration Max 2 | . . . . . . . . . . . . . . 1 . 1 1 . 1 . 2 1 1 Secondary Targets 34 | . . . . . . . . . . . . . . 5 5 1 . . 1 1 3 7 11 Max Gunslinging Chain 2 | . . . . . . . . . . . . . . 1 2 1 . . 1 1 1 1 2 Shots Hit Robots 1299 | 4 14 34 . . 74 49 13 . 92 11 11 . 32 166 107 103 21 . 32 37 76 214 209 Core Hits 605 | 2 6 15 . . 36 20 9 . 42 12 27 . 35 79 39 56 10 . 20 24 27 70 76 Critical Kills 30 | . . . . . . . . . . . . . 2 6 2 2 . . 2 1 3 9 3 Critical Parts Destroyed 48 | . . . . . . . . . . . . . . 2 3 4 . . . 4 8 13 14 Critical Strikes 93 | . . . . . . . . . . . . . 2 8 5 11 . . 2 6 12 24 23 Burn 4 | . . . . . . . . . . . . . . . . . . . . . . . 4 Meltdown 4 | . . . . . . . . . . . . . 2 2 . . . . . . . . . Destroy 83 | . . . . . . . . . . . . . . 6 5 11 . . 2 6 11 24 18 Corrupt 1 | . . . . . . . . . . . . . . . . . . . . . . . 1 Impale 1 | . . . . . . . . . . . . . . . . . . . . . 1 . . Melee Attacks 80 | . . . . . . 2 . . 10 . 1 . . 23 13 . . . 2 2 18 9 . Impact . | . . . . . . . . . . . . . . . . . . . . . . . . Slashing 53 | . . . . . . 2 . . 10 . 1 . . 23 13 . . . 2 2 . . . Piercing 27 | . . . . . . . . . . . . . . . . . . . . . 18 9 . Sneak Attacks 2 | . . . . . . . . . . . . . . . 2 . . . . . . . . Combat Hostiles . | . . . . . . . . . . . . . . . . . . . . . . . . Follow-up Attacks . | . . . . . . . . . . . . . . . . . . . . . . . . Damage Inflicted 39822 | 58 171 710 . . 1421 885 260 . 2663 802 1273 . 2300 4713 2346 3867 635 . 1740 1124 2416 6364 6074 Guns 27527 | 58 171 223 . . 796 570 82 . 808 73 61 . 276 4352 2193 2559 635 . 802 716 2089 5493 5570 Cannons 5051 | . . 473 . . 589 308 165 . 1246 216 107 . 434 308 . . . . . . . 871 334 Explosions 6596 | . . . . . . . . . 609 513 1105 . 1590 48 3 1223 . . 938 408 . . 159 Melee 477 | . . . . . . . . . . . . . . . 150 . . . . . 327 . . Ramming 171 | . . 14 . . 36 7 13 . . . . . . 5 . 85 . . . . . . 11 Kinetic 26963 | 58 122 223 . . 796 570 82 . 808 73 61 . 276 4352 2193 2559 635 . 802 716 2089 6364 4184 Thermal 5858 | . 49 473 . . 589 308 165 . 1610 216 107 . 434 308 . . . . . . . . 1599 Explosive 5243 | . . . . . . . . . 245 513 1105 . 1590 . . 1223 . . . 408 . . 159 Electromagnetic 1110 | . . . . . . . . . . . . . . 48 3 . . . 938 . . . 121 Impact . | . . . . . . . . . . . . . . . . . . . . . . . . Slashing 150 | . . . . . . . . . . . . . . . 150 . . . . . . . . Piercing 327 | . . . . . . . . . . . . . . . . . . . . . 327 . . Highest Corruption 49 | . . . . . . . . . 1 3 6 6 7 6 2 . . . 7 . 9 15 49 Average Corruption 7 | . . . . . . . . . 1 1 5 6 6 4 1 . . . 1 . 5 9 28 Corruption Purged 8 | . . . . . . . . . . . . . . 6 2 . . . . . . . . Corruption Blocked . | . . . . . . . . . . . . . . . . . . . . . . . . Effects 286 | . . . . . . . . . 7 12 36 5 43 40 1 . . . . . 9 60 73 Message Errors 49 | . . . . . . . . . 1 4 6 1 8 7 . . . . . . 1 10 11 Matter Fused 74 | . . . . . . . . . . 2 12 1 13 10 . . . . . . 4 14 18 Heat Flow Errors 38 | . . . . . . . . . 1 1 1 . 6 7 1 . . . . . 1 12 8 Energy Discharges 33 | . . . . . . . . . 4 1 4 2 5 4 . . . . . . . 7 6 Parts Rejected 5 | . . . . . . . . . . . 1 . . . . . . . . . 1 1 2 Parts Fused 4 | . . . . . . . . . . . 1 . 1 1 . . . . . . . 1 . Data Loss (minor) 31 | . . . . . . . . . . 1 3 1 6 8 . . . . . . 2 4 6 Data Loss (major) 8 | . . . . . . . . . . . 3 . 2 1 . . . . . . . 1 1 Misfires 13 | . . . . . . . . . 1 2 4 . 1 . . . . . . . . 4 1 Alerts 6 | . . . . . . . . . . 1 1 . 1 2 . . . . . . . . 1 Misdirections 3 | . . . . . . . . . . . . . . . . . . . . . . . 3 Weapon Failures 22 | . . . . . . . . . . . . . . . . . . . . . . 6 16 Overload Shots 1 | . . . . . . . . . . . . . . . . . 1 . . . . . . Overflow Damage 203 | . . 1 . . . . . . 23 25 . . 31 . . 78 . . . . . 38 7 Projectiles 118 | . . 1 . . . . . . 23 25 . . 31 . . . . . . . . 38 . Explosions 60 | . . . . . . . . . . . . . . . . 60 . . . . . . . Melee 25 | . . . . . . . . . . . . . . . . 18 . . . . . . 7 Knockbacks 2 | . . . . . . . . . . . . . . . . 1 . . . . . . 1 Impact 1 | . . . . . . . . . . . . . . . . 1 . . . . . . . Kinetic 1 | . . . . . . . . . . . . . . . . . . . . . . . 1 Secondary . | . . . . . . . . . . . . . . . . . . . . . . . . Self-Inflicted Damage 426 | . . . . . . . . . 145 27 39 . 58 . . 46 . . 99 . . . 12 Shots 8 | . . . . . . . . . 2 1 1 . 1 . . 1 . . 1 . . . 1 Rammed 12 | . . 2 . . 1 1 1 . . . . . . 1 . 4 . . . . . . 2 Targets Rammed 15 | . . 2 . . 2 1 1 . . . . . . 1 . 4 . . . . . . 4 Kicked 2 | . . . . . . . . . . . . . . . . . . . . . . . 2 Crushed 1 | . . . . . 1 . . . . . . . . . . . . . . . . . . Highest Temperature 643 | . 51 210 . . 348 229 108 . 298 352 330 . 378 222 177 170 369 . 274 111 416 643 229 Average Temperature 88 | . 24 63 . . 108 70 39 . 96 119 105 . 134 60 59 26 156 . 132 41 112 97 38 Received Heat Transfer 3345 | . 24 46 . . 315 45 . . 147 . 132 . 213 258 27 214 13 . 9 66 . 1457 379 Effects 31 | . . 2 . . . . . . . 1 3 . 1 . . . 3 . 1 . 2 18 . Shutdowns 8 | . . . . . . . . . . . . . . . . . 1 . . . 1 6 . Energy Bleed 6 | . . . . . . . . . . 1 . . 1 . . . 1 . 1 . . 2 . Interference 13 | . . 2 . . . . . . . . 3 . . . . . 1 . . . . 7 . Matter Decay 2 | . . . . . . . . . . . . . . . . . . . . . . 2 . Damage (minor) 1 | . . . . . . . . . . . . . . . . . . . . . 1 . . Damage (major) 1 | . . . . . . . . . . . . . . . . . . . . . . 1 . Siege Activations 3 | . . . . . . . . . . . . . . . . . . . . . 1 2 . Total Turns 103 | . . . . . . . . . . . . . . . . . . . . . 13 90 . Longest Duration 66 | . . . . . . . . . . . . . . . . . . . . . 13 66 . Martial Activations . | . . . . . . . . . . . . . . . . . . . . . . . . Shielding Activations . | . . . . . . . . . . . . . . . . . . . . . . . . Robots Disrupted . | . . . . . . . . . . . . . . . . . . . . . . . . Combat Hostiles . | . . . . . . . . . . . . . . . . . . . . . . . . Robots Corrupted 6 | . . . . . . . . . . . . . . . . 1 . . 5 . . . . Combat Hostiles . | . . . . . . . . . . . . . . . . . . . . . . . . Parts Fried 15 | . . . . . . . . . . . . . . . . 2 . . 11 . . . 2 Impact Corruptions 4 | . . . . . . . . . . . . . . . . 3 . . . . . . 1 Robots Melted 4 | . . . . . . . . . . . . . 2 2 . . . . . . . . . Combat Hostiles 4 | . . . . . . . . . . . . . 2 2 . . . . . . . . . Parts Melted 19 | . . . . . 1 1 . . 4 2 . . 4 4 . . . . . . . . 3 Heat Transferred 8488 | . 148 851 . . 1073 555 296 . 2124 296 148 . 481 370 . . . . . . . . 2146 Parts Sabotaged . | . . . . . . . . . . . . . . . . . . . . . . . . Parts Stolen . | . . . . . . . . . . . . . . . . . . . . . . . . Parts Stripped . | . . . . . . . . . . . . . . . . . . . . . . . . Power Chain Reactions . | . . . . . . . . . . . . . . . . . . . . . . . . Alert | -11 -10 -10 -10 -9 -8 -8 -8 -8 -6 -6 -6 -6 -5 -5 -4 -4 -4 -4 -4 -3 -3 -2 -1 ------- Run | Yrd Mat Min Exi Min Mat Sto Rec Scr Fac Low Low Dat Pro Fac Fac Ext Cet Arc Hub Res Tes Res Acc Maximum Alert Level 3 | . . . . . 1 . . . 1 . . . . 2 1 3 2 1 3 2 2 1 1 Low Security (%) 66 | 100 100 100 . 100 65 100 100 . 96 . . . . 49 56 75 . 77 55 . 6 67 97 Level 1 24 | . . . . . 34 . . . 3 . . . . 43 43 21 1 22 9 27 86 32 2 Level 2 8 | . . . . . . . . . . . . . . 6 . . 98 . 17 72 6 . . Level 3 . | . . . . . . . . . . . . . . . . 3 . . 16 . . . . Level 4 . | . . . . . . . . . . . . . . . . . . . . . . . . Level 5 . | . . . . . . . . . . . . . . . . . . . . . . . . High Security . | . . . . . . . . . . . . . . . . . . . . . . . . Max Security . | . . . . . . . . . . . . . . . . . . . . . . . . Peak Influence 880 | 5 25 89 . . 272 145 112 . 212 . . . . 501 312 849 594 200 880 644 422 292 294 Initial 470 | . . . . . . 53 36 . . . . . . . 244 140 470 200 56 453 331 202 148 Average 167 | . 3 22 . . 176 60 62 . 110 . . . . 176 200 146 504 182 301 473 315 157 72 Influence Increases 9899 | 5 36 291 . . 673 293 312 . 635 70 225 . 320 1029 484 1258 381 . 978 487 530 763 1129 Destroy 0b10 Robot/C 5100 | . 20 220 . . 440 140 60 . 360 60 200 . 280 580 260 620 160 . 260 240 240 460 500 Destroy 0b10 Robot/NC 415 | 5 10 20 . . 45 20 25 . 35 . 5 . . 75 30 25 10 . 25 . 20 35 30 Destroy Leader 1038 | . 2 30 . . 102 54 . . 104 10 20 . 40 140 74 72 . . 60 40 52 134 104 Allied During Kill 1118 | . . 6 . . 37 . . . . . . . . . . 418 170 . 302 144 41 . . Successful Hack 222 | . 4 . . . 17 . 46 . 10 . . . . 14 14 41 . . . 18 26 32 . Select Force Hacks 180 | . . . . . . . 180 . . . . . . . . . . . . . . . . Disable Machine 450 | . . . . . 15 60 . . 45 . . . . 75 45 . 15 . 75 15 75 15 15 Destroy Structure 806 | . . . . . 2 4 1 . 51 . . . . 100 46 82 26 . 256 30 46 72 90 Partial Spotted 45 | . . . . . . 15 . . . . . . . . . . . . . . . . 30 Lose Combat Pursuer 525 | . . 15 . . 15 . . . 30 . . . . 45 15 . . . . . 30 15 360 Influence Decreases 9668 | 5 36 241 50 . 546 327 399 6 492 213 224 1 320 530 695 705 721 341 274 761 759 877 1145 Entered New Map 2348 | . . . 50 . . 74 57 6 . 53 . 1 . . 255 148 371 301 104 411 259 159 99 Time Decay 6238 | 5 36 241 . . 506 253 342 . 482 160 224 . 300 440 410 497 310 40 130 310 440 598 514 Search Patrol Dispatched 100 | . . . . . . . . . . . . . . . . . . . . . . . 100 Lost Part 752 | . . . . . . . . . . . . . 20 90 30 20 20 . . . 20 120 432 Lost Ally 230 | . . . . . 40 . . . 10 . . . . . . 40 20 . 40 40 40 . . Squads Dispatched 60 | . 1 1 . . . 5 . . 8 . . . . 9 2 . . . 2 6 6 11 9 Investigation 3 | . . . . . . 1 . . . . . . . 1 . . . . . 1 . . . Extermination 24 | . . . . . . . . . 5 . . . . 6 1 . . . . . 3 5 4 Reinforcement 24 | . 1 . . . . 1 . . 3 . . . . 2 1 . . . 1 5 3 2 5 Assault 2 | . . 1 . . . . . . . . . . . . . . . . 1 . . . . Garrison 7 | . . . . . . 3 . . . . . . . . . . . . . . . 4 . Intercept . | . . . . . . . . . . . . . . . . . . . . . . . . Searches Triggered 1 | . . . . . . . . . . . . . . . . . . . . . . . 1 Data Miner Redirects 1 | . . . . . . . . . . . . . . 1 . . . . . . . . . Construction Impeded 4 | . . . . . . . . . . . . . . 1 1 . . . . . 1 1 . Haulers Reinforced 3 | . . . . . . . . . 1 . . . . . . . . . . . . 1 1 Active Scanning Responses . | . . . . . . . . . . . . . . . . . . . . . . . . Cargo Convoy Interrupts . | . . . . . . . . . . . . . . . . . . . . . . . . Stealth | -11 -10 -10 -10 -9 -8 -8 -8 -8 -6 -6 -6 -6 -5 -5 -4 -4 -4 -4 -4 -3 -3 -2 -1 --------- Run | Yrd Mat Min Exi Min Mat Sto Rec Scr Fac Low Low Dat Pro Fac Fac Ext Cet Arc Hub Res Tes Res Acc Distress Signals 19 | . 1 . . . 2 1 . . 1 . . . . 1 . 1 2 . . 3 2 1 4 Communications Jammed 68 | . . . . . . . . . 5 . . . . 15 6 9 . . 32 1 . . . Distress Signals 68 | . . . . . . . . . 5 . . . . 15 6 9 . . 32 1 . . . Times Spotted 335 | . 6 19 . . 19 12 1 . 23 7 10 . 14 34 17 35 8 . 16 13 17 27 57 Peak Tracking Total 15 | . 3 4 . . 4 3 . . 4 4 5 . 5 5 3 10 5 . 5 4 4 4 15 Tactical Retreats 20 | . . 1 . . 1 . . . 2 . . . . 2 1 . . . . . 1 1 11 ECM-based Alert Blocks 6 | . . . . . . . . . . . . . . . . . . . . . . . 6 Traps | -11 -10 -10 -10 -9 -8 -8 -8 -8 -6 -6 -6 -6 -5 -5 -4 -4 -4 -4 -4 -3 -3 -2 -1 ------- Run | Yrd Mat Min Exi Min Mat Sto Rec Scr Fac Low Low Dat Pro Fac Fac Ext Cet Arc Hub Res Tes Res Acc Traps Triggered 3 | . . . . . . . . . . . . . . . . . . . 1 1 1 . . Indirectly 1 | . . . . . . . . . . . . . . . . . . . 1 . . . . Trap Hack Attempts . | . . . . . . . . . . . . . . . . . . . . . . . . Triggered . | . . . . . . . . . . . . . . . . . . . . . . . . Disarmed . | . . . . . . . . . . . . . . . . . . . . . . . . Reprogrammed . | . . . . . . . . . . . . . . . . . . . . . . . . Reused . | . . . . . . . . . . . . . . . . . . . . . . . . Traps Extracted . | . . . . . . . . . . . . . . . . . . . . . . . . Installed . | . . . . . . . . . . . . . . . . . . . . . . . . Triggered . | . . . . . . . . . . . . . . . . . . . . . . . . Machines | -11 -10 -10 -10 -9 -8 -8 -8 -8 -6 -6 -6 -6 -5 -5 -4 -4 -4 -4 -4 -3 -3 -2 -1 ---------- Run | Yrd Mat Min Exi Min Mat Sto Rec Scr Fac Low Low Dat Pro Fac Fac Ext Cet Arc Hub Res Tes Res Acc Machines Disabled 34 | . . . . . 1 4 . . 3 1 . . . 5 3 2 1 . 5 1 6 1 1 Max in Single Turn 3 | . . . . . 1 1 . . 3 1 . . . 1 1 . 1 . 1 1 1 1 1 Garrison Access 1 | . . . . . . . . . . . . . . . . . . . 1 . . . . Network Hub 1 | . . . . . . . . . . . . . . . . . . . 1 . . . . Machines Repaired . | . . . . . . . . . . . . . . . . . . . . . . . . Machines Dismantled . | . . . . . . . . . . . . . . . . . . . . . . . . Machines Sabotaged . | . . . . . . . . . . . . . . . . . . . . . . . . Overloaded Fab Kills . | . . . . . . . . . . . . . . . . . . . . . . . . Hacking | -11 -10 -10 -10 -9 -8 -8 -8 -8 -6 -6 -6 -6 -5 -5 -4 -4 -4 -4 -4 -3 -3 -2 -1 --------- Run | Yrd Mat Min Exi Min Mat Sto Rec Scr Fac Low Low Dat Pro Fac Fac Ext Cet Arc Hub Res Tes Res Acc Machines Accessed 73 | . 1 . 1 1 8 4 12 2 3 1 . 3 . 7 4 5 1 1 3 4 6 4 2 Terminals 38 | . 1 . . . 7 2 6 . 2 . . . . 2 3 4 1 . 2 2 3 2 1 Fabricators 2 | . . . . . . . . . . . . . . 2 . . . . . . . . . Repair Stations 6 | . . . . . 1 1 . . 1 . . . . . . 1 . . . 1 1 . . Recycling Units 11 | . . . . . . 1 6 . . . . . . 1 1 . . . . . . 1 1 Scanalyzers 2 | . . . . . . . . . . . . . . 1 . . . . . . 1 . . Garrison Access 5 | . . . . . . . . . . . . . . 1 . . . . 1 1 1 1 . Total Hacks 217 | . 2 . 1 1 30 11 31 9 9 1 . 23 . 15 6 10 3 25 6 6 18 8 2 Successful 130 | . 1 . 1 1 19 3 20 9 7 1 . 23 . 3 2 5 . 25 2 1 4 3 . Failed 86 | . 1 . . . 11 8 11 . 2 . . . . 12 4 5 3 . 4 5 13 5 2 Catastrophic 15 | . . . . . . . . . . . . . . 3 1 1 2 . . 3 1 3 1 Database Lockouts 1 | . . . . . . . . . . . . . . . . . . . . . 1 . . Manual 85 | . 3 . . . 24 5 26 . 5 . . . . 3 3 7 1 1 1 . 4 2 . Terminals 107 | . 2 . . . 26 5 24 . 8 . . . . 4 4 8 3 . 5 4 8 5 1 Fabricators 6 | . . . . . . . . . . . . . . 6 . . . . . . . . . Repair Stations 14 | . . . . . 4 2 . . 1 . . . . . . 2 . . . 1 4 . . Recycling Units 18 | . . . . . . 4 7 . . . . . . 2 2 . . . . . . 2 1 Scanalyzers 5 | . . . . . . . . . . . . . . 1 . . . . . . 4 . . Garrison Access 7 | . . . . . . . . . . . . . . 2 . . . . 1 1 2 1 . Terminal Hacks 78 | . . . 1 1 4 . 8 9 1 1 . 23 . . 1 . . 25 . 1 2 1 . Record 33 | . . . 1 . . . . 1 . . . 6 . . . . . 25 . . . . . Part Schematic 11 | . . . . . . . 2 . . . . 9 . . . . . . . . . . . Robot Schematic 5 | . . . . . . . . . . . . 5 . . . . . . . . . . . Robot Analysis 8 | . . . . . . . . 8 . . . . . . . . . . . . . . . Prototype ID Bank 12 | . . . . . 2 . 6 . . . . 3 . . . . . . . . 1 . . Open Door 4 | . . . . 1 . . . . . 1 . . . . 1 . . . . . 1 . . Level Access Points 2 | . . . . . . . . . . . . . . . . . . . . 1 . 1 . Terminal Index 1 | . . . . . 1 . . . . . . . . . . . . . . . . . . Registered Components 1 | . . . . . 1 . . . . . . . . . . . . . . . . . . Zone Layout 1 | . . . . . . . . . 1 . . . . . . . . . . . . . . Fabricator Hacks 2 | . . . . . . . . . . . . . . 2 . . . . . . . . . Load Schematic 1 | . . . . . . . . . . . . . . 1 . . . . . . . . . Build 1 | . . . . . . . . . . . . . . 1 . . . . . . . . . Repair Station Hacks 8 | . . . . . 4 1 . . 1 . . . . . . 1 . . . . 1 . . Scan Component 6 | . . . . . 2 1 . . 1 . . . . . . 1 . . . . 1 . . Repair 2 | . . . . . 2 . . . . . . . . . . . . . . . . . . Recycling Unit Hacks 1 | . . . . . . . . . . . . . . . . . . . . . . 1 . Retrieve Components 1 | . . . . . . . . . . . . . . . . . . . . . . 1 . Scanalyzer 1 | . . . . . . . . . . . . . . . . . . . . . 1 . . Retrieve Study 1 | . . . . . . . . . . . . . . . . . . . . . 1 . . Garrison Access Hacks 1 | . . . . . . . . . . . . . . . . . . . 1 . . . . Seal Access 1 | . . . . . . . . . . . . . . . . . . . 1 . . . . Unauthorized Hacks 39 | . 1 . . . 11 2 12 . 5 . . . . 1 1 4 . . 1 . . 1 . Terminals 32 | . 1 . . . 11 1 6 . 5 . . . . 1 1 4 . . 1 . . 1 . Assimilate 1 | . . . . . 1 . . . . . . . . . . . . . . . . . . Botnet 13 | . . . . . 4 . 1 . 2 . . . . 1 1 2 . . 1 . . 1 . Operators 2 | . . . . . 1 . . . 1 . . . . . . . . . . . . . . Skim 16 | . 1 . . . 5 1 5 . 2 . . . . . . 2 . . . . . . . Fabricators . | . . . . . . . . . . . . . . . . . . . . . . . . Repair Stations . | . . . . . . . . . . . . . . . . . . . . . . . . Recycling Units 7 | . . . . . . 1 6 . . . . . . . . . . . . . . . . Reject 1 | . . . . . . 1 . . . . . . . . . . . . . . . . . Tunnel 6 | . . . . . . . 6 . . . . . . . . . . . . . . . . Scanalyzers . | . . . . . . . . . . . . . . . . . . . . . . . . Garrison Access . | . . . . . . . . . . . . . . . . . . . . . . . . Data Cores Recovered . | . . . . . . . . . . . . . . . . . . . . . . . . Used . | . . . . . . . . . . . . . . . . . . . . . . . . Hacking Detections 55 | . 1 . . . 8 4 7 . 3 . . . . 7 3 5 1 . 2 4 5 4 1 Full Trace Events 2 | . . . . . . 1 . . . . . . . 1 . . . . . . . . . Feedback Events . | . . . . . . . . . . . . . . . . . . . . . . . . Feedback Blocked . | . . . . . . . . . . . . . . . . . . . . . . . . Robot Schematics Acquired 6 | . . . . . . . . . . . . 5 . . . . . . . . 1 . . Robots Built . | . . . . . . . . . . . . . . . . . . . . . . . . Authchips . | . . . . . . . . . . . . . . . . . . . . . . . . Time . | . . . . . . . . . . . . . . . . . . . . . . . . Total Robot Build Rating . | . . . . . . . . . . . . . . . . . . . . . . . . Part Schematics Acquired 12 | . . . . . . . 2 . . . . 9 . . . . . . . . 1 . . Parts Built 1 | . . . . . . . . . . . . . . 1 . . . . . . . . . Authchips . | . . . . . . . . . . . . . . . . . . . . . . . . Time 152 | . . . . . . . . . . . . . . 152 . . . . . . . . . Total Part Build Rating 5 | . . . . . . . . . . . . . . 5 . . . . . . . . . Part Studies Acquired 1 | . . . . . . . . . . . . . . . . . . . . . 1 . . Parts Repaired 2 | . . . . . 2 . . . . . . . . . . . . . . . . . . Time 52 | . . . . . 52 . . . . . . . . . . . . . . . . . . Parts Recycled . | . . . . . . . . . . . . . . . . . . . . . . . . Recycled Matter . | . . . . . . . . . . . . . . . . . . . . . . . . Retrieved Matter . | . . . . . . . . . . . . . . . . . . . . . . . . Retrieved Components 1 | . . . . . . . . . . . . . . . . . . . . . . 1 . Parts Scanalyzed . | . . . . . . . . . . . . . . . . . . . . . . . . Part Schematics Acquired . | . . . . . . . . . . . . . . . . . . . . . . . . Parts Damaged . | . . . . . . . . . . . . . . . . . . . . . . . . Bothacking | -11 -10 -10 -10 -9 -8 -8 -8 -8 -6 -6 -6 -6 -5 -5 -4 -4 -4 -4 -4 -3 -3 -2 -1 ------------ Run | Yrd Mat Min Exi Min Mat Sto Rec Scr Fac Low Low Dat Pro Fac Fac Ext Cet Arc Hub Res Tes Res Acc Used RIF Installer . | . . . . . . . . . . . . . . . . . . . . . . . . Robots Hacked . | . . . . . . . . . . . . . . . . . . . . . . . . Non-combat . | . . . . . . . . . . . . . . . . . . . . . . . . Combat . | . . . . . . . . . . . . . . . . . . . . . . . . Robot Hacks Applied . | . . . . . . . . . . . . . . . . . . . . . . . . Relay Couplers Released 3 | . . . . . . . . . . . . . . . . . . . . . . 3 . Programmers 3 | . . . . . . . . . . . . . . . . . . . . . . 3 . Fabnet Peak Effective % . | . . . . . . . . . . . . . . . . . . . . . . . . Robots Rewired 11 | . . . . . . . . . . . . . . . . 11 . . . . . . . Allies Hacked . | . . . . . . . . . . . . . . . . . . . . . . . . Hacks Repelled . | . . . . . . . . . . . . . . . . . . . . . . . . Allies | -11 -10 -10 -10 -9 -8 -8 -8 -8 -6 -6 -6 -6 -5 -5 -4 -4 -4 -4 -4 -3 -3 -2 -1 -------- Run | Yrd Mat Min Exi Min Mat Sto Rec Scr Fac Low Low Dat Pro Fac Fac Ext Cet Arc Hub Res Tes Res Acc Total Allies 29 | . . 1 . 3 1 . . . . . . . . . . 19 5 . . . . . . Largest Group 18 | . . 1 1 4 4 1 1 1 1 . . . . . . 14 18 18 15 4 2 . . Highest-Rated Group 1163 | . . 31 31 71 71 9 9 9 9 . . . . . . 739 1163 1156 918 275 135 . . Highest-Rated Ally 159 | . . 31 31 31 31 9 9 9 9 . . . . . . 159 153 153 96 96 89 . . Total Orders 2 | . . . . 2 . . . . . . . . . . . . . . . . . . . RETURN 2 | . . . . 2 . . . . . . . . . . . . . . . . . . . Ally Attacks 333 | . . 11 . . 47 . . . . . . . . . . 68 59 . 98 35 15 . . Total Damage 7981 | . . 189 . . 579 . . . . . . . . . . 2163 1493 . 2260 769 528 . . Kills 51 | . . 2 . . 9 . . . . . . . . . . 14 8 . 13 3 2 . . Allies Corrupted 4 | . . . . . . . . . . . . . . . . . . . 4 . . . . Allies Melted . | . . . . . . . . . . . . . . . . . . . . . . . . Intel | -11 -10 -10 -10 -9 -8 -8 -8 -8 -6 -6 -6 -6 -5 -5 -4 -4 -4 -4 -4 -3 -3 -2 -1 ------- Run | Yrd Mat Min Exi Min Mat Sto Rec Scr Fac Low Low Dat Pro Fac Fac Ext Cet Arc Hub Res Tes Res Acc Active Infowar (turns) 20029 | 36 327 868 . 184 708 . . . 1603 1225 1893 174 1325 2958 986 1575 680 88 263 688 1095 1894 1459 Optics 8568 | . . . . . . . . . . . . . . . 829 1575 680 88 263 688 1095 1894 1456 Sensors 12730 | . . 2 . . . . . . 960 1215 1730 174 477 2098 628 1139 386 . 212 636 861 1111 1101 Terrain 7827 | . . 144 . . . . . . . 1104 1877 174 593 . 969 42 . . . 682 837 690 715 Structural 892 | . . . . 184 708 . . . . . . . . . . . . . . . . . . Seismic 1085 | 36 327 722 . . . . . . . . . . . . . . . . . . . . . Jamming 8261 | . . . . . . . . . 643 10 140 . 748 2948 986 1526 . . 186 688 386 . . ECM 846 | . . . . . . . . . . . . . . 1 . . . . . . . . 845 Robot Analysis Total 8 | . . . . . . . . 8 . . . . . . . . . . . . . . . Derelict Logs Recovered 3 | . . . . . . . . . . . 1 . 2 . . . . . . . . . . Drone Launches 2 | . . . . 2 . . . . . . . . . . . . . . . . . . . Drone Recoveries 2 | . . . . 2 . . . . . . . . . . . . . . . . . . . Exploration | -11 -10 -10 -10 -9 -8 -8 -8 -8 -6 -6 -6 -6 -5 -5 -4 -4 -4 -4 -4 -3 -3 -2 -1 ------------- Run | Yrd Mat Min Exi Min Mat Sto Rec Scr Fac Low Low Dat Pro Fac Fac Ext Cet Arc Hub Res Tes Res Acc Turns Passed 24793 | 116 327 1120 340 242 1445 549 770 1804 1606 1225 1893 174 1404 2958 986 1575 680 88 263 688 1095 1910 1535 Spaces Moved 11462 | 52 167 611 213 134 696 251 447 1129 784 712 813 96 528 1007 453 726 329 42 117 363 495 684 613 Core 188 | 5 . . . . . . . . . . . . . . . . . . . . . . 183 Treads 10518 | 47 167 611 213 134 696 251 447 1129 784 712 813 96 528 917 324 726 329 42 117 363 495 440 137 Legs 84 | . . . . . . . . . . . . . . . . . . . . . . . 84 Wheels 463 | . . . . . . . . . . . . . . 90 129 . . . . . . 244 . Hover 190 | . . . . . . . . . . . . . . . . . . . . . . . 190 Flight 19 | . . . . . . . . . . . . . . . . . . . . . . . 19 Fastest Speed 40 | 50 160 160 160 160 160 160 162 158 161 165 165 165 243 160 130 151 160 160 160 160 160 140 40 Average Speed 175 | 149 160 160 160 160 160 160 162 159 162 165 219 173 243 235 148 155 160 160 160 160 160 177 159 Slowest Speed 610 | 160 160 160 160 160 160 162 162 162 165 165 245 245 246 320 190 230 160 160 160 160 160 320 610 Overloaded Moves . | . . . . . . . . . . . . . . . . . . . . . . . . Propulsion Burnouts . | . . . . . . . . . . . . . . . . . . . . . . . . Robots Hopped . | . . . . . . . . . . . . . . . . . . . . . . . . Potential Cave-ins 6 | . . . . . . . . . . . . . . . . . . . . . 2 4 . Cave-ins Triggered 2 | . . . . . . . . . . . . . . . . . . . . . 1 1 . Exploration Rate (%) 50 | 4 27 98 63 22 47 31 96 81 21 72 82 69 73 22 12 88 87 79 23 13 61 14 17 Regions Visited 23 Branch Regions 15 Pre-discovered Areas 13 | . . . 1 . 1 . 8 . . . . 1 2 . . . . . . . . . . Known Exits Taken 14 | . . . . . . . . . 1 1 1 1 1 1 1 1 1 1 1 1 1 1 . Unknown Exits Taken 9 | 1 1 1 1 1 1 1 1 1 . . . . . . . . . . . . . . . Scrap Searched 11 | . . 1 . . . . . 3 . 3 3 . 1 . . . . . . . . . . Spaces Dug 229 | . . . . . . 2 . . 16 33 50 . 19 24 10 15 . . 2 2 11 19 26 Terrain Destroyed 780 | . . . . . . 3 . . 46 45 100 . 146 53 35 46 6 . 188 17 16 38 41 Melee 64 | . . . . . . 2 . . 10 . 1 . . 22 10 . . . 2 2 9 6 . Projectile 170 | . . . . . . 1 . . 4 4 5 . 4 31 24 10 6 . 18 3 7 31 22 AOE 541 | . . . . . . . . . 32 41 93 . 142 . . 36 . . 168 12 . . 17 Terrain Rammed . | . . . . . . . . . . . . . . . . . . . . . . . . Walls Destroyed . | . . . . . . . . . . . . . . . . . . . . . . . . Machines Disabled . | . . . . . . . . . . . . . . . . . . . . . . . . Actions | -11 -10 -10 -10 -9 -8 -8 -8 -8 -6 -6 -6 -6 -5 -5 -4 -4 -4 -4 -4 -3 -3 -2 -1 --------- Run | Yrd Mat Min Exi Min Mat Sto Rec Scr Fac Low Low Dat Pro Fac Fac Ext Cet Arc Hub Res Tes Res Acc Total 14675 | 80 209 684 212 162 939 349 478 1135 1013 740 884 105 605 1405 638 1078 473 63 158 436 692 1156 981 Wait 1440 | 15 12 24 . 14 117 42 9 . 98 3 16 . 36 193 60 130 101 22 1 20 70 291 166 Move 11437 | 51 166 610 212 133 695 250 446 1128 783 711 812 95 527 1006 452 725 328 41 116 362 493 682 613 Hop . | . . . . . . . . . . . . . . . . . . . . . . . . Pick Up 194 | 3 14 4 . 10 28 . 2 1 15 1 3 . 3 23 11 13 8 . 6 8 7 14 20 Fast Attach 136 | 7 . 2 . 2 4 8 . . 4 . 5 5 3 18 11 6 6 . 3 2 18 15 17 Attach 76 | . . 1 . 1 3 . . . 3 . 2 . 2 6 4 3 2 . 1 2 6 13 27 Detach 13 | . . . . . . . . . . . . . . . . 1 . . . . 3 3 6 Swap 336 | . 5 . . . 17 8 5 3 31 12 19 . 11 34 30 44 5 . 8 15 28 36 25 Drop 285 | . 3 6 . 2 31 13 6 3 24 3 7 5 3 40 20 25 15 . 9 11 24 11 24 Fire 568 | 4 9 35 . . 42 25 9 . 45 10 19 . 20 61 37 35 8 . 12 14 24 81 78 Melee 80 | . . . . . . 2 . . 10 . 1 . . 23 13 . . . 2 2 18 9 . Ram 3 | . . . . . . . . . . . . . . . . . . . . . . . 3 Kick 2 | . . . . . . . . . . . . . . . . . . . . . . . 2 Crush 11 | . . 2 . . 2 1 1 . . . . . . 1 . 4 . . . . . . . Escape Stasis 2 | . . . . . . . . . . . . . . . . . . . . . 1 1 . Rewire 92 | . . . . . . . . . . . . . . . . 92 . . . . . . . Trap . | . . . . . . . . . . . . . . . . . . . . . . . . Miscellaneous . | . . . . . . . . . . . . . . . . . . . . . . . . Route ------- -11/Scrapyard -10/Materials -10/Mines (discovered 3 exits: [*Mat x2] / *Exi) -10/Exiles -9/Mines -8/Materials (discovered 4 exits: *Fac x3 / *Sto) -8/Storage -8/Recycling (discovered 2 exits: *Fac / *Scr) -8/Scraptown (discovered 2 exits: *Fac x2) -6/Factory (discovered 5 exits: *Fac x3 / *Low x2) -6/Lower Caves -6/Lower Caves (discovered 2 exits: *Fac / *Dat) -6/Data Miner -5/Proximity Caves -5/Factory -4/Factory (discovered 3 exits: *Res / *Ext x2) -4/Extension (discovered 2 exits: *Res / *Cet) -4/Cetus (discovered 2 exits: *Res / *Arc) -4/Archives (discovered 2 exits: *Hub x2) -4/Hub_04(d) -3/Research (discovered 4 exits: Res x3 / *Tes) -3/Testing -2/Research (discovered 3 exits: *Acc x3) -1/Access History --------- Turn | Location | Event 5 | -11/Scrapyard | Discovered new exit (range 15) 117 | -11/Scrapyard | Entered Materials 311 | -10/Materials | Build established: Mutant 402 | -10/Materials | Discovered new exit (range 9) 444 | -10/Materials | Entered Mines 624 | -10/Mines | Met a Derelict bent on vengeance 746 | -10/Mines | Discovered new exit (range 9) 902 | -10/Mines | Found a damaged Exp. Sensor Array with a note attached 905 | -10/Mines | Found Prototype Device 905 | -10/Mines | Identified Exp. Sensor Array 1161 | -10/Mines | Discovered new exit (range 15) 1183 | -10/Mines | Excavation squad dispatched 1183 | -10/Mines | A large section of the Mines collapsed 1238 | -10/Mines | Met a Derelict testing a Signal Generator 1552 | -10/Mines | Deemed a non-threat by the Exiles lab entrance 1552 | -10/Mines | Discovered new exit (range 5) 1564 | -10/Mines | Entered Exiles 1564 | -10/Exiles | Accompanied by 1 ally 1604 | -10/Exiles | Met 8R-AWN 1630 | -10/Exiles | Met EX-HEX 1710 | -10/Exiles | Met EX-DEC 1739 | -10/Exiles | Learned location of Zion (-7) 1766 | -10/Exiles | Met EX-BIN 1884 | -10/Exiles | Discovered new exit (range 14) 1904 | -10/Exiles | Entered Mines 1904 | -9/Mines | Accompanied by 1 ally 1918 | -9/Mines | Found the Drone Emporium 1926 | -9/Mines | Found Prototype Device 1926 | -9/Mines | Identified Decoy Drone Bay 2031 | -9/Mines | Discovered new exit (range 9) 2042 | -9/Mines | Assisted by bots powering up and referring to "LRC-V3" 2146 | -9/Mines | Entered Materials 2146 | -8/Materials | Accompanied by 4 allies 2146 | -8/Materials | Evolved 4 slots: Propulsion x2, Weapon x2 2392 | -8/Materials | Discovered new exit (range 15) 2450 | -8/Materials | Build established: Skirmisher 2693 | -8/Materials | Discovered new exit (range 14) 2766 | -8/Materials | Build established: Scavenger-Skirmisher 2943 | -8/Materials | Identified exit to Factory 2994 | -8/Materials | Learned 2 Lower Caves zone layouts 3105 | -8/Materials | Learned location of 2 exits from Lower Caves 3176 | -8/Materials | Build established: Scavenger-Gunner 3456 | -8/Materials | Repaired Lgt. Treads 3483 | -8/Materials | Repaired Lgt. Treads 3591 | -8/Materials | Entered Storage 3591 | -8/Storage | Accompanied by 1 ally 3935 | -8/Storage | Garrison activated, responded to threat 4078 | -8/Storage | Used back door to open Recycling access 4078 | -8/Storage | Discovered new exit (range 4) 4140 | -8/Storage | Entered Recycling 4140 | -8/Recycling | Accompanied by 1 ally 4456 | -8/Recycling | Discovered new exit (range 15) 4731 | -8/Recycling | Learned Factory trap positions 4829 | -8/Recycling | Learned location of Lower Caves (-6) 4863 | -8/Recycling | Learned location of 2 exits from Factory 4868 | -8/Recycling | Scanned before Scraplab entrance 4886 | -8/Recycling | Learned location of 3 exits from Factory 4890 | -8/Recycling | Entered Scraplab 4903 | -8/Recycling | Discovered new exit (range 2) 4910 | -8/Recycling | Entered Scraptown 4910 | -8/Scraptown | Accompanied by 1 ally 5295 | -8/Scraptown | Discovered new exit (range 11) 5368 | -8/Scraptown | Heard Great Nut preacher, LISTEN AND RECITE! 5497 | -8/Scraptown | Build established: Gunner 5606 | -8/Scraptown | Visited CPS Storage 5622 | -8/Scraptown | Visited Shadow of the Wyrm 5660 | -8/Scraptown | Visited Science Testing Area 5685 | -8/Scraptown | Visited UFD Registry 5696 | -8/Scraptown | Visited Comm Corps 5723 | -8/Scraptown | Visited IN-MT5's Study 5763 | -8/Scraptown | Visited Cave Peace 5813 | -8/Scraptown | Registered with UFD as "Arcfunk" 5846 | -8/Scraptown | Visited LU-1G1's Boring Crew 5868 | -8/Scraptown | Visited Scrap Suit Storage 5891 | -8/Scraptown | Visited Junk Repository 6068 | -8/Scraptown | Visited Derelict Rescue Squad 6079 | -8/Scraptown | Found DRS Beacon 6108 | -8/Scraptown | Visited Analyses Database 6135 | -8/Scraptown | Visited Curators Association 6191 | -8/Scraptown | Visited Scrapoid Pod Storage 6219 | -8/Scraptown | Visited Supply Room 6257 | -8/Scraptown | Visited DA-N13 Charitable Foundation 6263 | -8/Scraptown | Found DCF Scrap (32 items) 6619 | -8/Scraptown | Met Optimus 6619 | -8/Scraptown | Accepted into 0bPrime 6707 | -8/Scraptown | Discovered new exit (range 5) 6714 | -8/Scraptown | Entered Factory 6714 | -6/Factory | Accompanied by 1 ally 6714 | -6/Factory | Evolved 4 slots: Power x1, Utility x3 6715 | -6/Factory | Identified exit to Lower Caves 6715 | -6/Factory | Identified exit to Factory 6716 | -6/Factory | Loaded intel: 77 trap records 6878 | -6/Factory | Found Prototype Launcher 6878 | -6/Factory | Identified Scatter Rocket Array 7021 | -6/Factory | Build established: Skirmisher 8320 | -6/Factory | Entered Lower Caves 8321 | -6/Lower Caves | Identified exit to Lower Caves 8324 | -6/Lower Caves | Build established: Scavenger-Skirmisher 8335 | -6/Lower Caves | Ambushed by wild Derelicts 8972 | -6/Lower Caves | Attacked by a delusional Derelict stockpiling parts 9545 | -6/Lower Caves | Entered another Lower Caves area 9546 | -6/Lower Caves | Identified exit to Data Miner 9701 | -6/Lower Caves | Discovered exit to Factory (range 7) 9887 | -6/Lower Caves | Spotted B-75 Beast 10128 | -6/Lower Caves | Found Alien Artifact 10128 | -6/Lower Caves | Identified Core Expander 10128 | -6/Lower Caves | Installed Core Expander, added new Weapon slot 11438 | -6/Lower Caves | Entered Data Miner 11441 | -6/Data Miner | Discovered new exit (range 6) 11449 | -6/Data Miner | Identified exit to Proximity Caves 11472 | -6/Data Miner | Met Data Miner 11507 | -6/Data Miner | Learned location of Section 7 (-2) 11507 | -6/Data Miner | Acquired the access code to Warlord's prototype stash 11532 | -6/Data Miner | Received God Mode back door access code from Data Miner 11612 | -6/Data Miner | Entered Proximity Caves 12183 | -5/Proximity Caves | Attracted the attention of an 0b10 checkpoint 12242 | -5/Proximity Caves | Lost 3 parts (1n2u) 12582 | -5/Proximity Caves | Build established: Scavenger-Tank 12673 | -5/Proximity Caves | Discovered exit to Factory (range 11) 13016 | -5/Proximity Caves | Entered Factory 13016 | -5/Factory | Evolved 2 slots: Propulsion x1, Utility x1 13054 | -5/Factory | Incoming investigation squad redirected 13185 | -5/Factory | Fabricated Lgt. Regenerative Plating? 13305 | -5/Factory | Build established: Scavenger-Gunner 13989 | -5/Factory | Build established: Scavenger-Skirmisher 15599 | -5/Factory | Discovered new exit (range 3) 15604 | -5/Factory | Identified exit to Factory 15974 | -5/Factory | Entered another Factory area 15974 | -4/Factory | Evolved 2 slots: Utility x2 15975 | -4/Factory | Identified exit to Extension 16801 | -4/Factory | Discovered new exit (range 8) 16886 | -4/Factory | Identified exit to Research 16922 | -4/Factory | Build established: Scavenger-Assassin 16955 | -4/Factory | Discovered exit to Extension (range 5) 16960 | -4/Factory | Entered Extension 17014 | -4/Extension | Rescued a captive Derelict 17043 | -4/Extension | Rescued a captive Derelict 17044 | -4/Extension | Rescued a captive Derelict 17124 | -4/Extension | Rescued a captive Derelict 17669 | -4/Extension | Spotted B-86 Titan 17713 | -4/Extension | Destroyed B-86 Titan 17731 | -4/Extension | Spotted B-86 Titan 17858 | -4/Extension | Destroyed B-86 Titan 17910 | -4/Extension | Disrupted transfer network 17992 | -4/Extension | Rescued A7 18035 | -4/Extension | Rescued a captive Derelict 18100 | -4/Extension | Rescued a captive Derelict 18112 | -4/Extension | Rescued a captive Derelict 18113 | -4/Extension | Rescued a captive Derelict 18465 | -4/Extension | Discovered exit to Research (range 10) 18470 | -4/Extension | Discovered new exit (range 6) 18480 | -4/Extension | Disrupted transfer network 18499 | -4/Extension | Found Heavy Servo Lattice 18508 | -4/Extension | Destroyed 8 combat bots 18526 | -4/Extension | Identified exit to Cetus 18535 | -4/Extension | Entered Cetus 18535 | -4/Cetus | Accompanied by 14 allies (A7) 18540 | -4/Cetus | Acquired a Cetus Manufacturing Module code from A7 18548 | -4/Cetus | Spotted Cetus Guard 18550 | -4/Cetus | Spotted Cetus Guard 18552 | -4/Cetus | Spotted Cetus Guard 18559 | -4/Cetus | Destroyed Cetus Guard 18560 | -4/Cetus | Spotted Cetus Guard 18564 | -4/Cetus | Allies destroyed Cetus Guard 18573 | -4/Cetus | Allies destroyed Cetus Guard 18576 | -4/Cetus | Allies destroyed Cetus Guard 18735 | -4/Cetus | Started Cetus Manufacturing Module 18760 | -4/Cetus | Manufactured an Enhanced Grunt 18785 | -4/Cetus | Manufactured an Enhanced Grunt 18810 | -4/Cetus | Manufactured an Enhanced Grunt 18835 | -4/Cetus | Manufactured an Enhanced Grunt 18860 | -4/Cetus | Manufactured an Enhanced Grunt 18879 | -4/Cetus | Escorted A7 to Cetus Mainframe 18970 | -4/Cetus | Build established: Commander-Skirmisher 18979 | -4/Cetus | Discovered new exit (range 22) 19017 | -4/Cetus | Spotted Cetus Guard 19018 | -4/Cetus | Spotted Cetus Guard 19023 | -4/Cetus | Spotted Cetus Guard 19024 | -4/Cetus | Spotted Cetus Guard 19026 | -4/Cetus | Allies destroyed Cetus Guard 19026 | -4/Cetus | Destroyed Cetus Guard 19037 | -4/Cetus | Allies destroyed Cetus Guard 19042 | -4/Cetus | Allies destroyed Cetus Guard 19042 | -4/Cetus | Discovered exit to Research (range 23) 19063 | -4/Cetus | Met Revision 17 19164 | -4/Cetus | Identified exit to Archives 19215 | -4/Cetus | Entered Archives 19215 | -4/Archives | Accompanied by 18 allies (A7) 19220 | -4/Archives | Received a hacking code to weaken MAIN.C 19235 | -4/Archives | Met Zhirov 19235 | -4/Archives | Discovered new exit (range 22) 19241 | -4/Archives | Reinforcements dispatched to Archives 19241 | -4/Archives | Discovered new exit (range 22) 19252 | -4/Archives | Read partially decrypted archive contents 19279 | -4/Archives | Identified exit to Hub_04(d) 19286 | -4/Archives | Reinforcements dispatched to Archives 19303 | -4/Archives | Entered Hub_04(d) 19303 | -4/Hub_04(d) | Accompanied by 15 allies 19434 | -4/Hub_04(d) | Spotted B-86 Titan 19448 | -4/Hub_04(d) | Allies destroyed B-86 Titan 19450 | -4/Hub_04(d) | Network Hub disabled 19462 | -4/Hub_04(d) | Spotted Lightning 19464 | -4/Hub_04(d) | Spotted Lightning 19469 | -4/Hub_04(d) | Spotted Lightning 19473 | -4/Hub_04(d) | Allies destroyed Lightning 19476 | -4/Hub_04(d) | Murdered 3 allies 19476 | -4/Hub_04(d) | Allies destroyed Lightning 19479 | -4/Hub_04(d) | Allies destroyed Lightning 19506 | -4/Hub_04(d) | Found Prototype Device 19506 | -4/Hub_04(d) | Identified Exp. Phase Shifter 19510 | -4/Hub_04(d) | Lost 7 allies 19514 | -4/Hub_04(d) | Discovered exit to Research (range 15) 19518 | -4/Hub_04(d) | Found Prototype Processor 19518 | -4/Hub_04(d) | Identified Exp. Targeting Computer 19553 | -4/Hub_04(d) | First assault squad dispatched 19566 | -4/Hub_04(d) | Entered Research 19566 | -3/Research | Accompanied by 4 allies 19566 | -3/Research | Evolved 2 slots: Propulsion x1, Utility x1 19766 | -3/Research | Revision forces began assault on 0b10 19780 | -3/Research | Met up with Revision 17++ 20003 | -3/Research | Identified exit to Research 20046 | -3/Research | Spotted B-86 Titan 20207 | -3/Research | Discovered new exit (range 11) 20221 | -3/Research | Build established: Scavenger-Skirmisher 20223 | -3/Research | Identified exit to Testing 20254 | -3/Research | Entered Testing 20254 | -3/Testing | Accompanied by 2 allies 20478 | -3/Testing | Found Prototype Ballistic Cannon 20478 | -3/Testing | Identified Omega Cannon 20830 | -3/Testing | Found Prototype Processor 20830 | -3/Testing | Identified Spectral Analyzer 20843 | -3/Testing | Central database locked down 21010 | -3/Testing | Crushed by falling debris 21072 | -3/Testing | Discovered exit to Research (range 13) 21174 | -3/Testing | Found Prototype Protection 21174 | -3/Testing | Identified SHELL Armor 21243 | -3/Testing | Found Prototype Processor 21243 | -3/Testing | Identified Exp. Melee Analysis Suite 21299 | -3/Testing | Found Prototype Processor 21299 | -3/Testing | Identified Exp. Target Analyzer 21349 | -3/Testing | Entered Research 21349 | -2/Research | Evolved 2 slots: Power x1, Utility x1 21584 | -2/Research | Spotted B-90 Cyclops 21683 | -2/Research | Lost 5 parts (1n2u2w) 21687 | -2/Research | Destroyed B-90 Cyclops 21813 | -2/Research | Identified exit to Access 22118 | -2/Research | Garrison activated, responded to threat 22142 | -2/Research | System corruption reached 10% 22166 | -2/Research | Lost 3 parts (2n1u) 22370 | -2/Research | Garrison activated, responded to threat 22454 | -2/Research | Build established: Scavenger-Gunner 22755 | -2/Research | Crushed by falling debris 23026 | -2/Research | Found Imp. Powered Armor 23236 | -2/Research | Build established: Scavenger-Skirmisher 23259 | -2/Research | Entered Access 23259 | -1/Access | Evolved 2 slots: Utility x2 23587 | -1/Access | Spotted B-99 Colossus 23731 | -1/Access | System corruption reached 10% 23740 | -1/Access | Lost 10 parts (1p4n2u3w) 23832 | -1/Access | Lost 5 parts (1p1n3w) 24299 | -1/Access | Lost 3 parts (1p1n1w) 24559 | -1/Access | System corruption reached 30% 24704 | -1/Access | Spotted B-99 Colossus 24712 | -1/Access | Core integrity fell below 50% 24746 | -1/Access | Lost 23 parts (3p7n5u8w) 24757 | -1/Access | Core integrity fell below 20% 24759 | -1/Access | Search patrols dispatched 24794 | -1/Access | Destroyed by P-80 Master with Gamma Rifle Last Messages --------------- 24718_ Connecting with Terminal... 24721_ Slug penetrates S-43 Plague. 24721_ Slug penetrates Wall. 24721_ Penetrated by Slug. 24721_ Slug penetrates Wall. 24722_ System corrupted: Heat flow error (+263). 24731_ Acquired Centrium Leg. 24732_ Knocked back. 24738_ System corrupted: Heat flow error (+200). 24753_ Acquired Adv. ECM Suite. 24755_ System corrupted: Matter fused (-7). 24756_ Dropped Adv. ECM Suite. 24759_ ALERT: Heightened foreign activity detected, multiple search patrols dispatched. 24775_ Drone sends a signal. 24784_ Penetrated by Slug. 24784_ Slug penetrates Door. 24786_ 9 RVIKHBZDKHV|%IF0NISS TSA&HMG,U 24790_ Penetrated by Slug. 24794_ Slammed into P-80 Master. Map ----- +----------------------------------------------------+ | ?????????????????????????????????????????????????? | | ?????????????????????????????????????????????????? | | ?????????????????????????????????????????????????? | | ?????????????????????????????????????????????????? | | ?????????????????????????????????????????????????? | | ?????????????????????????????????????????????????? | | ?????????????????????????????????????????????????? | | ?????????????????????????????????????????????????? | | ?????????????????????????????????????????????????? | | ?????????????????????????????????????????????????? | | ?????????????????????????????????????????????????? | | ?????????????????????????????????????????????????? | | ?????????????????????########????????????????????? | | ?????????????????????# #????????????????????? | | ?????????????????????# #????????????????????? | | ?????????????????????# #?????????????####???? | | ?????????????????????# #??????######## ???? | | ?????????????????????# ######? ! # ? | | ??????????????????????? # # # """ | | ??????????????????????###+### #?"" # """ | | ??????????????????????# # #""" # R" | | ??????????????????????# # #"T # """ | | ??????????????????????# Y + #""" # "" | | ??????????????????????# # # "" # | | ??????????????????????# p # # #? ? | | ??????????????????????###@### #?? ???##+### | | ????????????????????????# #?# #??##+###### # | | ????????????????????????#p########### # | | ????????????????????????# # | | ??????????????????????###;########### #? | | ????????????????????# ?????????# ## | | ????????????????????# ?????????# | | ????????????????????# ######???# ########### | | ????????????????????# # ##### #?????????? | | ????????????????????# # #?????????? | | ????????????????????# ""# #?????????? | | ????????????????????# ""# ###/#+############ | | ?""""""""""""???????# A""## ##?# + | | ?#"" #???????# Y"## #??# ### | | ?#"" #???????# ""## #??# " !#?? | | ?#"" #???????# ""## #??# """ #?? | | ?#T #???????# ""## #??# """ #?? | | ?#"" #???????# ## #??# " ] #?? | | ?#"" #????????? ## ##?# #?? | | ##""% %############+### #?# ! #?? | | % #?# #?? | | % % #?# #?? | | ####################"####### #?# #?? | | ???????????????????#???????##+###?# #?? | | ??????????????????????????????????##############?? | +----------------------------------------------------+ Best States ------------- Heat Dissipation 121 Energy Generation 61 Energy Capacity 815 Matter Stores 300 Matter Capacity 300 Sight Range 23 Robot Scan Range 20 Terrain Scan Range 24 Terrain Scan Density 210 ECM Strength 1 Jamming Range 12 Armor Coverage 1800 Resistance: TH 15 Resistance: EM 20 Weapon Cycling 20 Phase Shifting 20 Evasion (%) 62 Targeting Accuracy 12 Target Analysis 12 Recoil Reduction 6 Matter Filtering 50 Kinecelleration 30 Item Schematics ----------------- Imp. Grenade Launcher | -8/Recycling | Hacked Lyr. Medium Armor Plating | -8/Recycling | Hacked Combat Drone Bay | -6/Data Miner | Free Lgt. Regenerative Plating | -6/Data Miner | Free Enh. Armored Leg | -6/Data Miner | Free Imp. Matter Compressor | -6/Data Miner | Free Hvy. Gatling Laser | -6/Data Miner | Free Shield Leg | -6/Data Miner | Free Imp. Force Booster | -6/Data Miner | Free Phase Gun | -6/Data Miner | Free Mic. Antimatter Reactor | -6/Data Miner | Free Ionic Axe | -3/Testing | Archive Robot Schematics ------------------ S-27 Virus | -6/Data Miner | Free C-35 Carver | -6/Data Miner | Free A-15 Conveyor | -6/Data Miner | Free Y-64 Sentinel | -6/Data Miner | Free M-30 Cleanser | -6/Data Miner | Free A-02 Transporter | -3/Testing | Archive Fabricated ------------ Lgt. Regenerative Plating | x1 | -5/Factory Repaired ---------- Lgt. Treads | 60% | -8/Materials Lgt. Treads | 67% | -8/Materials Studied --------- Coil Gun | -3/Testing | Hacked Alien Tech Used ----------------- Core Expander Achievements -------------- Revolutionary Research Challenges ------------ None Game ------ Seed WeaponShadingChip Manual? 0 Play Time 03:05:53 Cumulative 274.1 hours Start 2025.12.31 @ 22:04:31 End 2026.01.01 @ 01:23:20 Sessions 1 Manual Loads 0 Difficulty Rogue Special Mode None Game No. 180 Rogue 180 Adventurer 0 Explorer 0 Win Type - Total 9 Types 6/0/1/1/0/0/0/1/0/0 Lore% 91 Gallery% 80 Achievement% 63 Wizard Run 0 Options --------- Layout 1 ASCII 0 Keyboard 0 Movement Mouse Keybinds 0 Fullscreen 2 Font 32/SmallcapsGlow Map View 50x35 Zoom Use 0% Tactical HUD 1 Map Filters NONE Filters NONE Steam 1 RUN: 247c12e0-1127-4f83-b8b2-440bf8cbb2a4